Cogmind - Beta 16 @@@ ROGUE MODE // 2025.11.14 @ 12:34:40 Player: Scringis Result: Self-destructed Performance ------------- Evolutions (2) 1000 Regions Visited (3) 600 Robots Destroyed (26) 130 Value Destroyed (634) 634 Prototype IDs (0) 0 Alien Tech Used (0) 0 Bonus (0) 0 TOTAL SCORE: 2364 Bonus ------- None Cogmind --------- Core Integrity 550/550 Matter 275/300 Energy 250/250 System Corruption 0% Temperature Cool (0) Movement Core (400) Ox7 Location -8/Materials Parts ------- > --- POWER (2) -------- Ion Engine > --- PROPULSION (3) --- (None) > --- UTILITY (2) ------ Medium Storage Unit Improved Targeting Computer > --- WEAPON (4) ------- Riot Gun Subdweller Machine Gun > --- INVENTORY (10) --- Light Ion Engine Subdweller Optics Light Assault Rifle Mining Laser Peak State ------------ > --- POWER ------------ Subdweller Power Source > --- PROPULSION ------- Light Treads Light Treads > --- UTILITY ---------- Small Storage Unit Improved Targeting Computer > --- WEAPON ----------- Subdweller Beam Cannon Battle Cannon > --- INVENTORY -------- Ion Engine Light Ion Engine Subdweller Optics Riot Gun Light Assault Rifle Subdweller Machine Gun Subdweller Machine Gun [Rating: 12] Favorites ----------- Power Ion Engine Engine Ion Engine Propulsion Light Treads Treads Light Treads Utility Small Storage Unit Device Terrain Scanner Storage Small Storage Unit Processor Improved Targeting Computer Weapon Assault Rifle Energy Gun Beam Rifle Energy Cannon Subdweller Beam Cannon Ballistic Gun Assault Rifle Ballistic Cannon Battle Cannon Special Weapon Mining Laser Build | -11 -10 -10 -8 ------- Run | Yrd Mat Sub Mat Slots Evolved 4 | . . . 4 Power 1 | . . . 1 Propulsion 1 | . . . 1 Utility . | . . . . Weapon 2 | . . . 2 Parts Attached 19 | 6 4 9 . Power 2 | 1 . 1 . Engine 2 | 1 . 1 . Core . | . . . . Reactor . | . . . . Propulsion 4 | 2 2 . . Treads 4 | 2 2 . . Leg . | . . . . Wheel . | . . . . Hover . | . . . . Flight . | . . . . Utility 4 | 1 1 2 . Device 1 | . 1 . . Storage 2 | 1 . 1 . Processor 1 | . . 1 . Hackware . | . . . . Protection . | . . . . Artifact . | . . . . Weapon 9 | 2 1 6 . Energy Gun 2 | . 1 1 . Energy Cannon 1 | . . 1 . Ballistic Gun 4 | 2 . 2 . Ballistic Cannon 1 | . . 1 . Launcher . | . . . . Special Weapon 1 | . . 1 . Impact Weapon . | . . . . Slashing Weapon . | . . . . Piercing Weapon . | . . . . Special Melee Weapon . | . . . . Unidentified Prototypes . | . . . . Parts Lost 5 | . . 5 . Power 1 | . . 1 . Propulsion 2 | . . 2 . Utility . | . . . . Weapon 2 | . . 2 . Highest Loss Streak 4 | . . 4 . To Critical Strikes . | . . . . Average Backups 5 | 2 4 6 . Power 1 | 1 1 1 . Propulsion . | . . . . Utility . | . . . . Weapon 3 | . 2 4 . Tool/Special . | . . . . Unused Backups 5 | . 1 1 3 Power 1 | . . . 1 Propulsion . | . . . . Utility 2 | . 1 . 1 Weapon 2 | . . 1 1 Tool/Special . | . . . . Average Slot Usage (%) 90 | . 91 89 . Engine 12 | . 11 13 . Treads 23 | . 28 19 . Device 6 | . 9 3 . Storage 14 | . 14 14 . Processor 5 | . . 10 . Energy Gun 4 | . 6 . . Energy Cannon 4 | . . 9 . Ballistic Gun 15 | . 21 10 . Special Weapon 2 | . . 6 . Peak Build Rating 12 | 6 8 12 . Average Rating 8 | 4 6 9 . On Entrance 5 | . 6 8 9 Avg Prop Armor Cover (%) . | . . . . Naked Turns . | . . . . Heaviest Build 23 | 13 16 23 . Greatest Support 40 | 40 40 40 . Greatest Overweight (x) 7 | . . 7 . Average Overweight (x) . | . . 1 . Largest Inventory Capacity 10 | 8 8 10 . Average Capacity 8 | 7 8 8 . Most Carried 8 | 5 7 8 . Average Carried 5 | 1 4 6 . Final Capacity 10 | 8 8 10 10 Final Carried 5 | 2 5 4 4 Class Distribution -------------------- 100% | Mutant Dominant Class ---------------- Mutant | -10/Materials Mutant | -10/Subcaves Mutant | -8/Materials Resources | -11 -10 -10 -8 ----------- Run | Yrd Mat Sub Mat Matter Collected 646 | 260 174 212 . Remotely . | . . . . Salvage Created 700 | . 429 271 . Parts 50 | . 35 15 . Haulers Intercepted . | . . . . Recyclers Shooed 1 | . 1 . . Parts Field Recycled . | . . . . Retrieved Matter . | . . . . Parts Self-Destructed 4 | . . 4 . Prevented . | . . . . Parts Restored . | . . . . Kills | -11 -10 -10 -8 ------- Run | Yrd Mat Sub Mat Combat Hostiles Destroyed 25 | . 18 7 . Guns 24 | . 18 6 . Cannons 1 | . . 1 . Classes Destroyed 5 | . 3 2 . Worker 1 | . 1 . . Swarmer 11 | . 11 . . Grunt 7 | . 7 . . Sentry 1 | . . 1 . Subdweller 6 | . . 6 . Best Kill Streak 6 | . 6 2 . Combat Bots Only 6 | . 6 2 . Max Kills in Single Turn 2 | . 2 1 . Gunslinging 1 | . 1 . . Exploded . | . . . . Melee . | . . . . Uniques/NPCs Destroyed . | . . . . Combat | -11 -10 -10 -8 -------- Run | Yrd Mat Sub Mat Hostile Shots Fired 107 | . 61 46 . Missed 30 | . 15 15 . Hits 77 | . 46 31 . Projectile 77 | . 46 31 . Critical Strikes 1 | . . 1 . Damage Taken 1213 | . 425 788 . Core 245 | . 88 157 . Absorbed by Shields . | . . . . Core Remaining (%) 51 | 100 . 2 . Volleys Fired 81 | . 49 32 . Largest 2 | . 2 2 . Hottest 113 | . 76 113 . Shots Fired 153 | . 98 55 . Gun 134 | . 98 36 . Cannon 13 | . . 13 . Launcher . | . . . . Special 6 | . . 6 . Kinetic 128 | . 92 36 . Thermal 25 | . 6 19 . Explosive . | . . . . Electromagnetic . | . . . . Robot Hit Streak 17 | . 10 17 . Robot Miss Streak 3 | . 3 2 . Penetration Max . | . . . . Secondary Targets 2 | . 2 . . Max Gunslinging Chain 1 | . 1 . . Shots Hit Robots 107 | . 65 42 . Core Hits 39 | . 28 11 . Critical Kills . | . . . . Critical Parts Destroyed 1 | . . 1 . Critical Strikes 2 | . . 2 . Burn 1 | . . 1 . Destroy 1 | . . 1 . Melee Attacks . | . . . . Impact . | . . . . Slashing . | . . . . Piercing . | . . . . Sneak Attacks . | . . . . Combat Hostiles . | . . . . Follow-up Attacks . | . . . . Damage Inflicted 1585 | . 719 866 . Guns 1290 | . 711 579 . Cannons 287 | . . 287 . Explosions . | . . . . Melee . | . . . . Ramming 8 | . 8 . . Kinetic 1249 | . 637 612 . Thermal 328 | . 74 254 . Explosive . | . . . . Electromagnetic . | . . . . Impact . | . . . . Slashing . | . . . . Piercing . | . . . . Highest Corruption . | . . . . Average Corruption . | . . . . Corruption Purged . | . . . . Corruption Blocked . | . . . . Overload Shots . | . . . . Overflow Damage . | . . . . Projectiles . | . . . . Explosions . | . . . . Melee . | . . . . Knockbacks . | . . . . Impact . | . . . . Kinetic . | . . . . Secondary . | . . . . Self-Inflicted Damage . | . . . . Shots . | . . . . Rammed 4 | . 4 . . Targets Rammed 4 | . 4 . . Kicked . | . . . . Crushed . | . . . . Highest Temperature 27 | . 12 27 . Average Temperature 7 | . 6 9 . Received Heat Transfer 396 | . 132 264 . Siege Activations . | . . . . Martial Activations . | . . . . Shielding Activations . | . . . . Robots Disrupted . | . . . . Combat Hostiles . | . . . . Robots Corrupted . | . . . . Combat Hostiles . | . . . . Parts Fried . | . . . . Impact Corruptions . | . . . . Robots Melted . | . . . . Combat Hostiles . | . . . . Parts Melted 1 | . . 1 . Heat Transferred 703 | . 185 518 . Parts Sabotaged . | . . . . Parts Stolen . | . . . . Parts Stripped . | . . . . Power Chain Reactions . | . . . . Alert | -11 -10 -10 -8 ------- Run | Yrd Mat Sub Mat Maximum Alert Level 1 | . 1 . . Low Security (%) 93 | 100 93 . . Level 1 6 | . 6 . . Level 2 . | . . . . Level 3 . | . . . . Level 4 . | . . . . Level 5 . | . . . . High Security . | . . . . Max Security . | . . . . Peak Influence 222 | . 222 . . Initial . | . . . . Average 91 | . 97 . . Influence Increases 475 | . 455 20 . Destroy 0b10 Robot/C 380 | . 360 20 . Destroy 0b10 Robot/NC 5 | . 5 . . Destroy Leader 60 | . 60 . . Lose Combat Pursuer 30 | . 30 . . Influence Decreases 475 | . 436 39 . Entered New Map 10 | . . 10 . Time Decay 465 | . 436 29 . Squads Dispatched 3 | . 3 . . Investigation 2 | . 2 . . Extermination . | . . . . Reinforcement 1 | . 1 . . Assault . | . . . . Garrison . | . . . . Intercept . | . . . . Searches Triggered . | . . . . Construction Impeded . | . . . . Haulers Reinforced . | . . . . Active Scanning Responses . | . . . . Cargo Convoy Interrupts . | . . . . Stealth | -11 -10 -10 -8 --------- Run | Yrd Mat Sub Mat Distress Signals 1 | . 1 . . Communications Jammed . | . . . . Distress Signals . | . . . . Times Spotted 34 | . 27 7 . Peak Tracking Total 6 | . 6 2 . Tactical Retreats 2 | . 2 . . Traps | -11 -10 -10 -8 ------- Run | Yrd Mat Sub Mat Traps Triggered 3 | . 3 . . Indirectly . | . . . . Trap Hack Attempts . | . . . . Triggered . | . . . . Disarmed . | . . . . Reprogrammed . | . . . . Reused . | . . . . Traps Extracted . | . . . . Installed . | . . . . Triggered . | . . . . Machines | -11 -10 -10 -8 ---------- Run | Yrd Mat Sub Mat Machines Disabled . | . . . . Max in Single Turn . | . . . . Machines Repaired . | . . . . Machines Dismantled . | . . . . Machines Sabotaged . | . . . . Overloaded Fab Kills . | . . . . Hacking | -11 -10 -10 -8 --------- Run | Yrd Mat Sub Mat Machines Accessed . | . . . . Terminals . | . . . . Fabricators . | . . . . Repair Stations . | . . . . Recycling Units . | . . . . Scanalyzers . | . . . . Garrison Access . | . . . . Total Hacks . | . . . . Successful . | . . . . Failed . | . . . . Catastrophic . | . . . . Database Lockouts . | . . . . Manual . | . . . . Terminals . | . . . . Fabricators . | . . . . Repair Stations . | . . . . Recycling Units . | . . . . Scanalyzers . | . . . . Garrison Access . | . . . . Terminal Hacks . | . . . . Fabricator Hacks . | . . . . Repair Station Hacks . | . . . . Recycling Unit Hacks . | . . . . Scanalyzer . | . . . . Garrison Access Hacks . | . . . . Unauthorized Hacks . | . . . . Terminals . | . . . . Fabricators . | . . . . Repair Stations . | . . . . Recycling Units . | . . . . Scanalyzers . | . . . . Garrison Access . | . . . . Data Cores Recovered . | . . . . Used . | . . . . Hacking Detections . | . . . . Full Trace Events . | . . . . Feedback Events . | . . . . Feedback Blocked . | . . . . Robot Schematics Acquired . | . . . . Robots Built . | . . . . Authchips . | . . . . Time . | . . . . Total Robot Build Rating . | . . . . Part Schematics Acquired . | . . . . Parts Built . | . . . . Authchips . | . . . . Time . | . . . . Total Part Build Rating . | . . . . Part Studies Acquired . | . . . . Parts Repaired . | . . . . Time . | . . . . Parts Recycled . | . . . . Recycled Matter . | . . . . Retrieved Matter . | . . . . Retrieved Components . | . . . . Parts Scanalyzed . | . . . . Part Schematics Acquired . | . . . . Parts Damaged . | . . . . Bothacking | -11 -10 -10 -8 ------------ Run | Yrd Mat Sub Mat Used RIF Installer . | . . . . Robots Hacked . | . . . . Non-combat . | . . . . Combat . | . . . . Robot Hacks Applied . | . . . . Relay Couplers Released . | . . . . Fabnet Peak Effective % . | . . . . Robots Rewired . | . . . . Allies Hacked . | . . . . Hacks Repelled . | . . . . Allies | -11 -10 -10 -8 -------- Run | Yrd Mat Sub Mat Total Allies . | . . . . Largest Group . | . . . . Highest-Rated Group . | . . . . Highest-Rated Ally . | . . . . Total Orders . | . . . . Ally Attacks . | . . . . Total Damage . | . . . . Kills . | . . . . Allies Corrupted . | . . . . Allies Melted . | . . . . Intel | -11 -10 -10 -8 ------- Run | Yrd Mat Sub Mat Active Infowar (turns) 1112 | . 845 267 . Terrain 1112 | . 845 267 . Robot Analysis Total . | . . . . Derelict Logs Recovered . | . . . . Drone Launches . | . . . . Drone Recoveries . | . . . . Exploration | -11 -10 -10 -8 ------------- Run | Yrd Mat Sub Mat Turns Passed 2507 | 81 1268 1158 . Spaces Moved 1217 | 49 668 500 . Core 96 | 9 . 87 . Treads 1121 | 40 668 413 . Legs . | . . . . Wheels . | . . . . Hover . | . . . . Flight . | . . . . Fastest Speed 50 | 50 160 160 . Average Speed 174 | 139 160 196 . Slowest Speed 400 | 160 160 400 . Overloaded Moves . | . . . . Propulsion Burnouts . | . . . . Robots Hopped . | . . . . Potential Cave-ins . | . . . . Cave-ins Triggered . | . . . . Exploration Rate (%) 31 | 4 96 25 1 Regions Visited 3 Branch Regions 1 Pre-discovered Areas . | . . . . Known Exits Taken . | . . . . Unknown Exits Taken 3 | 1 1 1 . Scrap Searched . | . . . . Spaces Dug . | . . . . Terrain Destroyed 1 | . . 1 . Melee . | . . . . Projectile 1 | . . 1 . AOE . | . . . . Terrain Rammed . | . . . . Walls Destroyed . | . . . . Machines Disabled . | . . . . Actions | -11 -10 -10 -8 --------- Run | Yrd Mat Sub Mat Total 1449 | 62 776 611 . Wait 91 | . 38 53 . Move 1214 | 48 667 499 . Hop . | . . . . Pick Up 26 | 8 9 9 . Fast Attach . | . . . . Attach 15 | 6 2 7 . Detach . | . . . . Swap 7 | . 3 4 . Drop 11 | . 4 7 . Fire 81 | . 49 32 . Melee . | . . . . Ram . | . . . . Kick . | . . . . Crush 4 | . 4 . . Escape Stasis . | . . . . Rewire . | . . . . Trap . | . . . . Miscellaneous . | . . . . Route ------- -11/Scrapyard -10/Materials (discovered 5 exits: [*Mat x3] / [*Min] / [*Sub]) -10/Subcaves (discovered 2 exits: [*Mat x2]) -8/Materials History --------- Turn | Location | Event 6 | -11/Scrapyard | Discovered new exit (range 16) 82 | -11/Scrapyard | Entered Materials 311 | -10/Materials | Build established: Mutant 382 | -10/Materials | Discovered new exit (range 8) 716 | -10/Materials | Discovered new exit (range 4) 830 | -10/Materials | Discovered new exit (range 16) 1068 | -10/Materials | Discovered new exit (range 15) 1323 | -10/Materials | Discovered new exit (range 11) 1350 | -10/Materials | Entered Subcaves 1351 | -10/Subcaves | Approached by a straggling Scientist 1373 | -10/Subcaves | Core integrity fell below 50% 1626 | -10/Subcaves | A swath of the cavern ceiling suddenly collapsed 1726 | -10/Subcaves | Discovered new exit (range 9) 2131 | -10/Subcaves | Ambushed by Subdwellers from Twisted Machinery 2153 | -10/Subcaves | Core integrity fell below 20% 2198 | -10/Subcaves | Lost 4 parts (1p2n1w) 2484 | -10/Subcaves | Discovered new exit (range 7) 2508 | -10/Subcaves | Entered Materials 2508 | -8/Materials | Evolved 4 slots: Power x1, Propulsion x1, Weapon x2 2508 | -8/Materials | Self-destructed Last Messages --------------- 02227_ Acquired 4 matter. 02233_ Subatomizers dissect the Sml. Storage Unit. 02341_ Critical hit (Burn: +37). 02343_ Y-45 Defender suffers critical hit (Destroy). 02343_ Destroyed Lgt. Treads. 02344_ Sub. Machine Gun destroyed. 02346_ Y-45 Defender destroyed. 02354_ Heat Sink fries itself beyond repair. 02355_ Imp. Ion Engine fries itself beyond repair. 02358_ Acquired 46 matter. 02364_ Hvy. Assault Rifle fries itself beyond repair. 02484_ EXIT=FOUND PARAMETERS=POWER+1,PROPULSION+1,WEAPON+2 LOCATION=UNKNOWN GOAL=ESCAPE Map ----- +----------------------------------------------------+ | ???????????????????????????????? | | ???????????????????????????????? | | ???????????????????????????????? | | ???????????????????????????????? | | ???????????????????????????????? | | ???????????????????????????????? | | ???????????????????????????????? | | ???????????????????????????????? | | ???????????????????????????????? | | ???????????????????????????????? | | ?????? ??????????????????????? | | ?????? ??????????????????????? | | ?????? ??????????????????????? | | ?????# #?????????????????????? | | ?????# +?????????????????????? | | ?????# #?????????????????????? | | ?????+ #?????????????????????? | | ?????# #?????????????????????? | | ?????# #?????????????????????? | | ?????# #?????????????????????? | | ?????# #?????????????????????? | | ?????# #?????????????????????? | | ?????# #?????????????????????? | | ?????# #?????????????????????? | | ?????# #?????????????????????? | | ?????# @ #?????????????????????? | | ?????# #?????????????????????? | | ?????#####?????????????????????? | | ???????????????????????????????? | | ???????????????????????????????? | | ???????????????????????????????? | | ???????????????????????????????? | | ???????????????????????????????? | | ???????????????????????????????? | | ???????????????????????????????? | | ???????????????????????????????? | | ???????????????????????????????? | | ???????????????????????????????? | | | | | | | | | | | | | | | | | | | | | | | | | +----------------------------------------------------+ Best States ------------- Heat Dissipation 25 Energy Generation 15 Energy Capacity 250 Matter Stores 300 Matter Capacity 300 Sight Range 16 Terrain Scan Range 14 Terrain Scan Density 10 Evasion (%) 50 Targeting Accuracy 6 Recoil Reduction 2 Item Schematics ----------------- None Robot Schematics ------------------ None Fabricated ------------ Nothing Repaired ---------- Nothing Studied --------- None Alien Tech Used ----------------- None Achievements -------------- None Challenges ------------ None Game ------ Seed RemoteSkeletonMediator Manual? 0 Play Time 00:10:43 Cumulative 47.2 hours Start 2025.11.14 @ 12:21:08 End 2025.11.14 @ 12:34:40 Sessions 1 Manual Loads 0 Difficulty Rogue Special Mode None Game No. 131 Rogue 131 Adventurer 0 Explorer 0 Win Type - Total 0 Types 0/0/0/0/0/0/0/0/0/0 Lore% 25 Gallery% 31 Achievement% 25 Wizard Run 0 Options --------- Layout 1 ASCII 0 Keyboard 0 Movement Numpad Keybinds 0 Fullscreen 2 Font 24/Smallcaps Map View 50x35 Zoom Use 0% Tactical HUD 1 Map Filters NONE Filters NONE Steam 1 RUN: e15d2b4f-1683-46dd-afe9-c543d5b0c89e